bitfinex-derivatives/quotes_BTCF0:USTF0_20240824
["timestamp","ask_amount","ask_price","bid_price","bid_amount"]
[1724519190731,0.002,64200.0,64199.0,0.18216907]
[1724519190932,0.002,64200.0,64199.0,0.26001707]
[1724519192234,0.002,64200.0,64199.0,0.35260974]
[1724519193038,0.002,64200.0,64199.0,0.36097974]
[1724519193228,0.002,64200.0,64199.0,0.95565911]
[1724519193530,0.00023357,64205.0,64204.0,0.077842]
[1724519193834,0.00023357,64205.0,64204.0,0.19644689]
[1724519194035,0.00023357,64205.0,64204.0,0.25707311]
[1724519194220,0.00023357,64205.0,64204.0,0.42507311]
[1724519194929,0.00123357,64205.0,64204.0,0.42607311]
[1724519195325,0.00223357,64205.0,64204.0,0.42607311]
[1724519198026,0.00223357,64205.0,64204.0,0.42606456]
[1724519200332,0.00223357,64205.0,64204.0,0.43870522]
[1724519202729,0.00223357,64205.0,64204.0,0.43870826]
[1724519202929,0.00223357,64205.0,64204.0,0.43870825]
[1724519203430,0.00223357,64205.0,64204.0,0.35490825]
[1724519203830,0.00223357,64205.0,64204.0,0.27070825]
[1724519206832,0.00223357,64205.0,64204.0,0.27907825]
[1724519210528,0.00223357,64205.0,64204.0,0.36907825]
[1724519212233,0.00223357,64205.0,64204.0,0.37092825]
[1724519212840,0.00223357,64205.0,64204.0,0.37092359]
[1724519214545,0.00223357,64205.0,64204.0,0.46396954]
[1724519215342,0.00223357,64205.0,64204.0,0.37092359]
[1724519215542,0.04662424,64216.0,64204.0,0.63245537]
[1724519215742,0.0825,64218.0,64215.0,0.09]
[1724519215938,0.09,64216.0,64213.0,0.07746566]
[1724519216139,0.09,64216.0,64214.0,0.07746566]
[1724519217039,0.077826,64217.0,64214.0,0.09]
[1724519217841,0.077826,64217.0,64214.0,0.167829]
[1724519218043,0.077826,64217.0,64215.0,0.077828]
[1724519218241,0.001,64216.0,64215.0,0.077828]
[1724519219138,0.079826,64217.0,64215.0,0.077828]
[1724519219545,0.078826,64217.0,64215.0,0.077828]
[1724519219746,0.002,64216.0,64215.0,0.077828]
[1724519220041,0.004,64216.0,64215.0,0.077828]
[1724519220343,0.004,64216.0,64212.0,0.07746566]
[1724519220344,0.077831,64213.0,64212.0,0.07746566]
[1724519220543,0.077832,64212.0,64211.0,0.07746566]
[1724519221045,0.077832,64212.0,64211.0,0.19605778]
[1724519221243,0.077832,64212.0,64211.0,0.09]
[1724519221448,0.12453056,64212.0,64211.0,0.15203002]
[1724519222237,0.077872,64212.0,64211.0,0.09]
[1724519222446,0.04665907,64212.0,64211.0,0.635033]
[1724519222643,0.002,64217.0,64216.0,0.077827]
[1724519222848,0.002,64217.0,64216.0,0.75355769]
[1724519223145,0.00023357,64221.0,64220.0,0.077822]
[1724519223350,0.04665624,64225.0,64224.0,0.077817]
[1724519223536,0.04665624,64228.0,64224.0,0.15193764]
[1724519223736,0.04665624,64229.0,64228.0,0.077812]
[1724519223943,0.04665624,64229.0,64228.0,0.04644771]
[1724519224145,0.077812,64228.0,64225.0,0.04644771]
[1724519224338,0.077812,64228.0,64223.0,0.077818]
[1724519224339,0.09,64226.0,64223.0,0.12426571]
[1724519224536,0.04660572,64226.0,64223.0,0.12426571]
[1724519224739,0.04660572,64226.0,64224.0,0.04644771]
[1724519225040,0.40740572,64227.0,64224.0,0.04644771]
[1724519225348,0.3608,64227.0,64224.0,0.077817]
[1724519225645,0.01,64226.0,64224.0,0.077817]
[1724519226238,0.3608,64227.0,64225.0,0.077816]
[1724519226445,0.3628,64227.0,64225.0,0.13970678]
[1724519227038,0.001,64226.0,64225.0,0.13970678]
[1724519227749,0.001,64226.0,64225.0,0.077816]
[1724519228345,0.001,64226.0,64225.0,0.13967246]
[1724519228542,0.001,64226.0,64225.0,0.077816]
[1724519228742,0.001,64226.0,64225.0,0.13965444]
[1724519229248,0.004,64226.0,64225.0,0.13965444]
[1724519230440,0.004,64226.0,64225.0,0.077816]
[1724519230751,0.004,64226.0,64225.0,0.13965444]
[1724519231449,0.004,64226.0,64225.0,0.077816]
[1724519231840,0.00023357,64233.0,64232.0,0.077808]
[1724519232548,0.00023357,64233.0,64232.0,0.60663148]
[1724519232950,0.00923357,64233.0,64232.0,0.60663148]
[1724519233151,0.00923357,64233.0,64232.0,0.544848]
[1724519233548,0.01923357,64233.0,64232.0,0.544848]
[1724519233947,0.01923357,64233.0,64232.0,0.13954029]
[1724519234149,0.01923357,64233.0,64232.0,0.077808]
[1724519234548,0.01923357,64233.0,64232.0,0.13954029]
[1724519234746,0.01923357,64233.0,64232.0,0.077808]
[1724519235047,0.01023357,64233.0,64232.0,0.077808]
[1724519235252,0.01723357,64233.0,64232.0,0.077808]
[1724519235642,0.00723357,64233.0,64232.0,0.077808]
[1724519235953,0.01423357,64233.0,64232.0,0.439608]
[1724519236347,0.01423357,64233.0,64232.0,0.078808]
[1724519236943,0.01423357,64233.0,64232.0,0.00285]
[1724519237146,0.03945739,64233.0,64232.0,0.00285]
[1724519237550,0.03945739,64233.0,64232.0,0.01122]
[1724519238463,0.01423357,64233.0,64232.0,0.01122]
[1724519238845,0.09203957,64233.0,64232.0,0.01122]
[1724519239050,0.17013957,64233.0,64232.0,0.01122]
[1724519239454,1.03717957,64233.0,64232.0,0.01122]
[1724519240656,1.03717957,64233.0,64222.0,0.07782]
[1724519240959,0.3608,64223.0,64222.0,0.07782]
[1724519241455,0.4414,64223.0,64222.0,0.07782]
[1724519241958,0.517,64223.0,64222.0,0.07782]
[1724519242950,0.4414,64223.0,64222.0,0.07782]
[1724519243255,0.4414,64223.0,64222.0,0.124115]
[1724519243452,0.3608,64223.0,64222.0,0.124115]
[1724519244051,0.3608,64223.0,64222.0,0.124155]
[1724519245463,0.3608,64223.0,64222.0,0.07786]
[1724519246363,0.3608,64223.0,64222.0,0.13959229]
[1724519247959,0.3608,64223.0,64222.0,0.13971717]
[1724519248158,0.077814,64227.0,64222.0,0.07786]
[1724519248352,0.077814,64227.0,64226.0,0.04639231]
[1724519248567,0.077809,64232.0,64226.0,0.04639231]
[1724519248866,0.00023357,64233.0,64231.0,0.077809]
[1724519249160,0.00023357,64233.0,64232.0,0.077808]
[1724519249364,0.00023357,64233.0,64232.0,0.13966441]
[1724519249555,0.00023357,64233.0,64232.0,0.077848]
[1724519250158,0.00023357,64233.0,64232.0,0.157948]
[1724519251061,0.00923357,64233.0,64232.0,0.157948]
[1724519251260,0.01723357,64233.0,64232.0,0.157948]
[1724519252070,0.00923357,64233.0,64232.0,0.157948]
[1724519252263,0.01623357,64233.0,64232.0,0.157948]
[1724519253171,0.01423357,64233.0,64232.0,0.157948]
[1724519255075,0.01423357,64233.0,64232.0,0.1708168]
[1724519255273,0.01423357,64233.0,64232.0,0.1698168]
[1724519256473,0.01423357,64233.0,64232.0,0.5306168]
[1724519256865,0.01423357,64233.0,64232.0,0.72638723]
[1724519257067,0.01423357,64233.0,64232.0,0.60793744]
[1724519257279,0.01423357,64233.0,64232.0,0.72648085]
[1724519257469,0.01423357,64233.0,64232.0,0.60793744]
[1724519257664,0.01423357,64233.0,64232.0,0.64915961]
[1724519258271,0.01423357,64233.0,64232.0,0.72646964]
[1724519258477,0.01423357,64233.0,64232.0,0.64915774]
[1724519258673,0.01423357,64233.0,64232.0,0.72645994]
[1724519259070,0.01423357,64233.0,64232.0,0.64915774]
[1724519259271,0.01423357,64233.0,64232.0,0.20875282]
[1724519259474,0.45283957,64233.0,64232.0,0.0129088]
[1724519263891,0.01423357,64233.0,64232.0,0.0129088]
[1724519264883,0.01423357,64233.0,64232.0,0.1691168]
[1724519265081,0.01423357,64233.0,64232.0,0.36496522]
[1724519265486,0.01423357,64233.0,64232.0,0.1691168]
[1724519267786,0.01423357,64233.0,64232.0,1.0361568]
[1724519267988,0.01423357,64233.0,64232.0,1.09800071]
[1724519268199,0.3608,64240.0,64239.0,0.077799]
[1724519268490,0.3608,64240.0,64239.0,0.13962222]
[1724519268987,0.3608,64240.0,64239.0,0.077839]
[1724519270390,0.3748,64240.0,64239.0,0.077839]
[1724519270787,0.3878,64240.0,64239.0,0.14065037]
[1724519271584,0.3878,64240.0,64239.0,0.078839]
[1724519271884,0.3878,64240.0,64239.0,0.00104]
[1724519271885,0.465598,64240.0,64239.0,0.00104]
[1724519272891,0.104798,64240.0,64239.0,0.00104]
[1724519273092,0.104798,64240.0,64239.0,0.06286175]
[1724519273493,0.104798,64240.0,64239.0,0.00104]
[1724519273695,0.104798,64240.0,64239.0,0.06288256]
[1724519273895,0.104798,64240.0,64239.0,0.00104]
[1724519274091,0.104798,64240.0,64239.0,0.06288291]
[1724519274287,0.104798,64240.0,64239.0,0.0756321]
[1724519275097,0.104798,64240.0,64239.0,0.07564165]
[1724519275391,0.027,64240.0,64239.0,0.09158819]
[1724519275889,0.027,64240.0,64239.0,0.21011668]
[1724519276297,0.013,64240.0,64239.0,0.3027919]
[1724519276489,0.014,64240.0,64239.0,0.3077919]
[1724519277387,0.014,64240.0,64239.0,0.3077885]
[1724519277593,0.002,64240.0,64239.0,0.3127885]
[1724519278294,0.002,64240.0,64239.0,0.6735885]
[1724519278490,0.002,64240.0,64239.0,0.67368342]
[1724519279487,0.002,64240.0,64239.0,0.58091328]
[1724519280993,0.002,64240.0,64239.0,0.58091068]
[1724519281693,0.12435414,64258.0,64239.0,0.93918084]
[1724519282000,0.04657814,64258.0,64257.0,0.04635819]
[1724519282197,0.04657814,64260.0,64256.0,0.077778]
[1724519282400,0.04657814,64260.0,64258.0,0.04633783]
[1724519282594,0.40737814,64261.0,64257.0,4e-05]
[1724519282795,0.3608,64261.0,64260.0,0.04633392]
[1724519283092,0.438573,64261.0,64259.0,0.04633392]
[1724519283298,0.438573,64261.0,64260.0,4e-05]
[1724519284407,0.452573,64261.0,64260.0,0.00104]
[1724519285193,0.466573,64261.0,64260.0,0.00204]
[1724519286000,0.105773,64261.0,64260.0,0.00204]
[1724519292807,0.105773,64261.0,64260.0,0.079814]
[1724519293604,0.15226809,64261.0,64260.0,0.079814]
[1724519295913,0.105773,64261.0,64260.0,0.079814]
[1724519296511,0.028,64261.0,64260.0,0.079814]
[1724519297008,0.028,64261.0,64260.0,0.12614792]
[1724519298205,0.028,64261.0,64260.0,0.079814]
[1724519298413,0.028,64261.0,64260.0,0.12614792]
[1724519298810,0.028,64261.0,64260.0,0.079814]
[1724519299209,0.028,64261.0,64260.0,0.12614792]
[1724519300613,0.028,64261.0,64260.0,0.079814]
[1724519300821,0.028,64261.0,64260.0,0.12611361]
[1724519301011,0.028,64261.0,64260.0,0.079814]
[1724519304513,0.028,64261.0,64260.0,0.169814]
[1724519308613,0.08918951,64261.0,64260.0,0.169814]
[1724519309421,0.21346911,64261.0,64260.0,0.169814]
[1724519309716,0.028,64261.0,64260.0,0.169814]
[1724519311118,0.028,64261.0,64260.0,0.24708201]
[1724519311320,0.028,64261.0,64260.0,0.36549717]
[1724519314017,0.028,64261.0,64260.0,0.28822916]
[1724519318326,0.028,64261.0,64260.0,0.28780496]
[1724519319027,0.028,64261.0,64260.0,0.19780496]
[1724519319218,0.028,64261.0,64260.0,0.28780496]
[1724519321717,0.00023357,64265.0,64264.0,0.077769]
[1724519322027,0.04664315,64272.0,64264.0,0.20799096]
[1724519322226,0.04664315,64275.0,64271.0,0.16734732]
[1724519322427,0.04664315,64276.0,64274.0,0.09]
[1724519322623,0.04664315,64276.0,64272.0,0.07734732]
[1724519322624,0.04664315,64276.0,64275.0,0.09]
[1724519322821,0.3608,64276.0,64273.0,0.07734732]
[1724519323119,0.3608,64276.0,64269.0,0.07758069]
[1724519323120,0.04658059,64275.0,64269.0,0.07758069]
[1724519323332,0.04658059,64274.0,64269.0,0.00023337]
[1724519323532,0.3608,64276.0,64273.0,0.09]
[1724519323533,0.077756,64275.0,64273.0,0.09]
[1724519324124,0.077756,64275.0,64274.0,0.06181009]
[1724519324423,0.077756,64275.0,64273.0,0.09]
[1724519324630,0.06216171,64274.0,64273.0,0.09]
[1724519325022,0.13991871,64274.0,64273.0,0.092]
[1724519325222,0.077797,64274.0,64273.0,0.092]
[1724519325426,0.13990969,64274.0,64273.0,0.168758]
[1724519325927,0.14390969,64274.0,64273.0,0.169758]
[1724519326123,0.087797,64274.0,64273.0,0.169758]
[1724519326324,0.087797,64274.0,64273.0,0.21611675]
[1724519326325,0.01004,64274.0,64273.0,0.21611675]
[1724519326519,0.01004,64274.0,64273.0,0.169758]
[1724519326930,0.01004,64274.0,64273.0,0.23156809]
[1724519327128,0.01004,64274.0,64273.0,0.169758]
[1724519327529,0.01004,64274.0,64273.0,0.247858]
[1724519329137,0.01004,64274.0,64273.0,0.29415652]
[1724519329437,0.01004,64274.0,64273.0,0.247858]
[1724519330128,0.01004,64274.0,64273.0,0.29414897]
[1724519330850,0.01004,64274.0,64273.0,0.247858]
[1724519331332,0.01004,64274.0,64273.0,0.43983595]
[1724519331541,0.01004,64274.0,64273.0,0.36248863]
[1724519332132,0.00032,64282.0,64273.0,1.15149063]
[1724519332340,0.00032,64282.0,64281.0,0.167748]
[1724519332836,0.00032,64282.0,64281.0,0.167788]
[1724519333225,0.00032,64282.0,64281.0,0.22943814]
[1724519333430,0.0744,64292.0,64281.0,0.95672]
[1724519333636,0.0744,64292.0,64289.0,0.09]
[1724519334134,0.0744,64292.0,64291.0,0.077736]
[1724519335337,0.0744,64292.0,64289.0,0.09]
[1724519335338,0.077738,64290.0,64289.0,0.09]
[1724519335637,0.438538,64290.0,64289.0,0.09]
[1724519336727,0.438538,64290.0,64289.0,0.091]
[1724519336935,0.438538,64290.0,64289.0,0.092]
[1724519338032,0.438538,64290.0,64284.0,0.00023337]
[1724519338241,0.077743,64285.0,64284.0,0.00023337]
[1724519343840,0.077743,64285.0,64277.0,0.07452651]
[1724519343841,0.35990678,64285.0,64277.0,0.07452651]
[1724519344146,0.28220378,64284.0,64277.0,0.07452651]
[1724519344347,0.19075315,64283.0,64282.0,0.077747]
[1724519345045,4e-05,64284.0,64283.0,0.077746]
[1724519345244,0.17120914,64284.0,64283.0,0.297746]
[1724519347045,4e-05,64284.0,64283.0,0.297746]
[1724519347251,4e-05,64284.0,64283.0,0.375846]
[1724519347448,4e-05,64284.0,64283.0,0.42207535]
[1724519347644,4e-05,64284.0,64283.0,0.49477535]
[1724519347950,4e-05,64284.0,64283.0,0.448546]
[1724519350050,4e-05,64284.0,64283.0,0.375846]
[1724519350252,4e-05,64284.0,64283.0,0.42213568]
[1724519350447,4e-05,64284.0,64283.0,0.375846]
[1724519350642,4e-05,64284.0,64283.0,0.42213568]
[1724519350950,4e-05,64284.0,64283.0,0.375846]
[1724519352941,4e-05,64284.0,64283.0,0.43748514]
[1724519353443,4e-05,64284.0,64283.0,0.375846]
[1724519356046,4e-05,64284.0,64283.0,0.45294744]
[1724519356254,4e-05,64284.0,64283.0,0.57139769]
[1724519356453,4e-05,64284.0,64283.0,0.49429625]
[1724519359255,4e-05,64284.0,64283.0,0.49429534]
[1724519359548,4e-05,64284.0,64283.0,0.5020313]
[1724519361457,4e-05,64284.0,64283.0,0.49429534]
[1724519362447,4e-05,64284.0,64283.0,0.36429534]
[1724519363744,4e-05,64284.0,64283.0,0.36429519]
[1724519364152,4e-05,64284.0,64283.0,0.45711198]
[1724519364348,4e-05,64284.0,64283.0,0.36429519]
[1724519364554,4e-05,64284.0,64283.0,0.45711198]
[1724519366646,4e-05,64284.0,64283.0,0.72509519]
[1724519366849,4e-05,64284.0,64283.0,0.81781325]
[1724519367449,4e-05,64284.0,64283.0,0.45701325]
[1724519368849,4e-05,64284.0,64283.0,0.45701248]
[1724519369048,4e-05,64284.0,64283.0,0.36429442]
[1724519370051,4e-05,64284.0,64283.0,0.45706609]
[1724519370363,4e-05,64284.0,64283.0,0.36429442]
[1724519370954,4e-05,64284.0,64283.0,0.45707822]
[1724519371159,4e-05,64284.0,64283.0,0.36429442]
[1724519371361,4e-05,64284.0,64283.0,0.11844842]
[1724519371666,4e-05,64284.0,64283.0,0.28619442]
[1724519371965,4e-05,64284.0,64283.0,0.37898941]
[1724519372158,4e-05,64284.0,64283.0,0.37899753]
[1724519372356,4e-05,64284.0,64283.0,0.28619442]
[1724519372554,4e-05,64284.0,64283.0,0.29399959]
[1724519373865,4e-05,64284.0,64283.0,0.42140752]
[1724519377863,4e-05,64284.0,64283.0,0.29399959]
[1724519378064,4e-05,64284.0,64283.0,0.42136439]
[1724519378757,4e-05,64284.0,64283.0,0.19619442]
[1724519378962,4e-05,64284.0,64283.0,0.11844842]
[1724519379262,0.259885,64284.0,64283.0,0.11844842]
[1724519379462,0.077746,64283.0,64282.0,0.07741276]
[1724519379662,0.09,64281.0,64277.0,0.10561061]
[1724519379864,0.077751,64279.0,64278.0,0.1184663]
[1724519380455,0.077752,64278.0,64277.0,0.07737169]
[1724519380660,0.3608,64280.0,64276.0,0.00023337]
[1724519380860,0.3608,64280.0,64276.0,0.16760506]
[1724519381163,0.077751,64279.0,64278.0,0.004]
[1724519383259,0.077751,64279.0,64277.0,0.004]
[1724519383869,0.077751,64279.0,64276.0,0.09023337]
[1724519384062,0.077751,64279.0,64278.0,0.007]
[1724519384475,0.077751,64279.0,64278.0,0.003]
[1724519385469,0.621485,64284.0,64278.0,0.080752]
[1724519385668,0.621485,64284.0,64283.0,0.09]
[1724519385669,0.620685,64284.0,64283.0,0.09]
[1724519386971,0.259885,64284.0,64283.0,0.09]
[1724519387167,0.620685,64284.0,64283.0,0.09]
[1724519387365,0.259885,64284.0,64283.0,0.09]
[1724519389072,0.201185,64284.0,64283.0,0.09]
[1724519389471,0.201185,64284.0,64283.0,0.15182999]
[1724519391567,0.201185,64284.0,64283.0,0.15184427]
[1724519392871,0.201185,64284.0,64283.0,0.09]
[1724519393482,0.201185,64284.0,64283.0,0.15184728]
[1724519393973,0.201185,64284.0,64283.0,0.09]
[1724519398387,0.201185,64284.0,64283.0,0.15184728]
[1724519398977,0.137285,64284.0,64283.0,0.15184728]
[1724519399780,0.137285,64284.0,64283.0,0.22959328]
[1724519401377,0.00023278,64289.0,64283.0,0.22959328]
[1724519401378,0.00023278,64289.0,64288.0,0.07774]
[1724519401577,0.00023278,64289.0,64288.0,0.16774]
[1724519401780,0.00023278,64289.0,64288.0,0.24505286]
[1724519402483,0.00023278,64289.0,64288.0,0.15605286]
[1724519402675,0.00023278,64289.0,64288.0,0.001]
[1724519402876,0.16797178,64289.0,64288.0,0.001]
[1724519403182,0.16797178,64289.0,64288.0,0.04839764]
[1724519403887,0.16797178,64289.0,64288.0,0.04839846]
[1724519404384,0.16797178,64289.0,64288.0,0.002]
[1724519404585,0.16797178,64289.0,64288.0,0.092]
[1724519404586,0.07797178,64289.0,64288.0,0.092]
[1724519405176,0.00023278,64289.0,64288.0,0.16974]
[1724519406381,0.00023278,64289.0,64288.0,0.22874]
[1724519406587,0.00023278,64289.0,64288.0,0.30605286]
[1724519406983,0.00023278,64289.0,64288.0,0.34718058]
[1724519407382,0.00023278,64289.0,64288.0,0.19775121]
[1724519407584,0.86687278,64289.0,64288.0,0.04641031]
[1724519407784,0.077745,64284.0,64283.0,0.04641031]
[1724519407983,0.4229198,64284.0,64281.0,0.04641031]
[1724519408293,0.09,64282.0,64281.0,0.04641031]
[1724519408590,0.09,64282.0,64275.0,0.09]
[1724519408591,0.09,64282.0,64280.0,0.04643357]
[1724519408786,0.61842,64281.0,64277.0,0.06187543]
[1724519408982,0.61842,64281.0,64278.0,0.04643467]
[1724519408983,0.077751,64279.0,64278.0,0.04643467]
[1724519409386,0.077752,64278.0,64277.0,0.04643467]
[1724519409587,0.077753,64277.0,64274.0,0.06187543]
[1724519409791,0.964673,64277.0,64274.0,0.06187543]
[1724519409980,1.364673,64277.0,64274.0,0.06187543]
[1724519410186,1.364673,64277.0,64273.0,0.06187543]
[1724519410390,0.964673,64277.0,64276.0,0.04664803]
[1724519410588,0.964673,64277.0,64276.0,0.00023337]
[1724519410789,0.964673,64277.0,64276.0,0.04664823]
[1724519410986,1.364673,64277.0,64276.0,0.04664823]
[1724519411188,1.364673,64277.0,64276.0,0.00023337]
[1724519411889,0.497953,64277.0,64276.0,0.00023337]
[1724519412292,0.497953,64277.0,64276.0,0.00623337]
[1724519413786,0.497953,64277.0,64276.0,0.01123337]
[1724519416484,0.438553,64277.0,64276.0,0.01123337]
[1724519417888,0.438553,64277.0,64276.0,0.08898737]
[1724519417889,0.077753,64277.0,64276.0,0.08898737]
[1724519418096,0.3608,64283.0,64277.0,0.077753]
[1724519418294,0.07775,64280.0,64279.0,0.077751]
[1724519419990,0.07775,64280.0,64279.0,0.12408041]
[1724519420292,0.07775,64280.0,64279.0,0.12608322]
[1724519420597,0.07775,64280.0,64279.0,0.081751]
[1724519421692,0.07775,64280.0,64279.0,0.12810134]
[1724519421889,0.07775,64280.0,64279.0,0.081751]
[1724519424090,0.07775,64280.0,64279.0,0.12810134]
[1724519424495,0.07775,64280.0,64279.0,0.081751]
[1724519424898,0.07775,64280.0,64279.0,0.12810134]
[1724519425494,0.07775,64280.0,64279.0,0.081751]
[1724519427095,0.3608,64283.0,64280.0,0.077748]
[1724519427394,0.3608,64283.0,64279.0,0.004]
[1724519427395,0.438546,64283.0,64281.0,0.12410937]
[1724519428000,0.438546,64283.0,64282.0,4e-05]
[1724519429899,0.516292,64283.0,64282.0,4e-05]
[1724519433403,0.5784118,64283.0,64282.0,4e-05]
[1724519433603,0.516292,64283.0,64282.0,4e-05]
[1724519434310,0.57837792,64283.0,64282.0,4e-05]
[1724519434809,0.516292,64283.0,64282.0,4e-05]
[1724519435109,0.57837792,64283.0,64282.0,4e-05]
[1724519435304,0.516292,64283.0,64282.0,4e-05]
[1724519436010,0.57838385,64283.0,64282.0,4e-05]
[1724519436198,0.516292,64283.0,64282.0,4e-05]
[1724519438103,0.59391155,64283.0,64282.0,4e-05]
[1724519438309,0.516292,64283.0,64282.0,4e-05]
[1724519438611,0.606292,64283.0,64282.0,4e-05]
[1724519438802,0.68391155,64283.0,64282.0,4e-05]
[1724519439003,0.606292,64283.0,64282.0,4e-05]
[1724519439512,0.68391155,64283.0,64282.0,4e-05]
[1724519439702,0.606292,64283.0,64282.0,4e-05]
[1724519440307,0.68391155,64283.0,64282.0,4e-05]
[1724519440912,0.606292,64283.0,64282.0,4e-05]
[1724519441211,0.68398513,64283.0,64282.0,4e-05]
[1724519441708,0.606292,64283.0,64282.0,4e-05]
[1724519441908,0.68398859,64283.0,64282.0,4e-05]
[1724519442711,0.606292,64283.0,64282.0,4e-05]
[1724519443013,0.63149978,64283.0,64282.0,4e-05]
[1724519443208,0.68399094,64283.0,64282.0,4e-05]
[1724519444111,0.63149936,64283.0,64282.0,4e-05]
[1724519444515,0.68399235,64283.0,64282.0,4e-05]
[1724519444914,0.63149986,64283.0,64282.0,4e-05]
[1724519445111,0.68399233,64283.0,64282.0,4e-05]
[1724519445301,0.63150006,64283.0,64282.0,4e-05]
[1724519445506,0.68399367,64283.0,64282.0,4e-05]
[1724519445814,0.63149998,64283.0,64282.0,4e-05]
[1724519446009,0.606292,64283.0,64282.0,4e-05]
[1724519446513,0.68399331,64283.0,64282.0,4e-05]
[1724519447011,0.32319331,64283.0,64282.0,4e-05]
[1724519447315,1.04479331,64283.0,64282.0,4e-05]
[1724519447916,0.99229928,64283.0,64282.0,4e-05]
[1724519448112,1.04479425,64283.0,64282.0,4e-05]
[1724519449410,1.04479554,64283.0,64282.0,4e-05]
[1724519449621,0.967092,64283.0,64282.0,4e-05]
[1724519450307,1.04479554,64283.0,64282.0,4e-05]
[1724519451605,0.99229983,64283.0,64282.0,4e-05]
[1724519451811,1.04480199,64283.0,64282.0,4e-05]
[1724519452113,0.99229982,64283.0,64282.0,4e-05]
[1724519453315,1.04480447,64283.0,64282.0,4e-05]
[1724519453619,0.967092,64283.0,64282.0,4e-05]
[1724519454508,0.99229999,64283.0,64282.0,4e-05]
[1724519456119,0.99229957,64283.0,64282.0,4e-05]
[1724519457816,0.967092,64283.0,64282.0,4e-05]
[1724519458016,0.99229956,64283.0,64282.0,4e-05]
[1724519460116,0.27069956,64283.0,64282.0,4e-05]
[1724519460317,0.99229956,64283.0,64282.0,4e-05]
[1724519464125,0.91455356,64283.0,64282.0,0.04640137]
[1724519465426,0.889346,64283.0,64282.0,0.04640137]
[1724519467423,0.889346,64283.0,64282.0,0.06191543]
[1724519467817,0.889346,64283.0,64282.0,4e-05]
[1724519467818,0.528546,64283.0,64282.0,4e-05]
[1724519469418,0.50072642,64283.0,64282.0,0.06199802]
[1724519469615,0.438546,64283.0,64282.0,0.06199709]
[1724519469823,0.438546,64283.0,64282.0,4e-05]
[1724519470431,0.12437229,64283.0,64282.0,4e-05]
[1724519471126,0.167746,64283.0,64282.0,4e-05]
[1724519471427,0.21436501,64283.0,64282.0,0.0159601]
[1724519471726,0.167746,64283.0,64282.0,4e-05]
[1724519472523,0.167746,64283.0,64282.0,0.04754]
[1724519473725,0.077746,64283.0,64282.0,0.04754]
[1724519475032,0.167746,64283.0,64282.0,0.04754]
[1724519475833,0.167746,64283.0,64282.0,0.06297192]
[1724519476424,0.167746,64283.0,64282.0,0.1248802]
[1724519481534,0.167746,64283.0,64282.0,0.10944828]
[1724519481732,0.167746,64283.0,64282.0,0.04754]
[1724519483436,0.21436501,64283.0,64282.0,0.04754]
[1724519483631,0.167746,64283.0,64282.0,0.04754]
[1724519484427,0.21436501,64283.0,64282.0,0.04754]
[1724519484634,0.167746,64283.0,64282.0,0.04754]
[1724519485030,0.21436501,64283.0,64282.0,0.04754]
[1724519485230,0.167746,64283.0,64282.0,0.04754]
[1724519485527,0.21433906,64283.0,64282.0,0.04754]
[1724519485838,0.167746,64283.0,64282.0,0.04754]
[1724519486034,0.167746,64283.0,64282.0,4e-05]
[1724519486240,0.21433906,64283.0,64282.0,4e-05]
[1724519486936,0.077747,64282.0,64279.0,0.00039698]
[1724519487126,0.4508,64280.0,64276.0,0.04669301]
[1724519487327,0.15214074,64277.0,64276.0,0.00023337]
[1724519488137,0.09,64277.0,64276.0,0.00023337]
[1724519488336,0.30763194,64277.0,64276.0,0.00023337]
[1724519488542,0.30763194,64277.0,64276.0,0.00623337]
[1724519489143,0.66843194,64277.0,64276.0,0.00623337]
[1724519489946,0.66843194,64277.0,64276.0,0.01123337]
[1724519489947,0.606306,64277.0,64276.0,0.01123337]
[1724519490942,0.245506,64277.0,64276.0,0.01123337]
[1724519491251,0.606306,64277.0,64276.0,0.01123337]
[1724519491933,0.245506,64277.0,64276.0,0.01123337]
[1724519492140,0.606306,64277.0,64276.0,0.01123337]
[1724519492741,0.59065128,64277.0,64276.0,0.01123337]
[1724519493946,0.528553,64277.0,64276.0,0.01123337]
[1724519496451,0.57511401,64277.0,64276.0,0.01123337]
[1724519496843,0.528553,64277.0,64276.0,0.01123337]
[1724519497044,0.167753,64277.0,64276.0,0.01123337]
[1724519497240,0.528553,64277.0,64276.0,0.01123337]
[1724519498146,0.48511237,64277.0,64276.0,0.01123337]
[1724519498338,0.167753,64277.0,64276.0,0.05769301]
[1724519498544,0.167753,64277.0,64276.0,0.01123337]
[1724519498855,0.13655937,64279.0,64276.0,0.01123337]
[1724519499550,0.21431037,64279.0,64278.0,4e-05]
[1724519500551,0.167751,64279.0,64278.0,4e-05]
[1724519501857,0.167751,64279.0,64278.0,0.00304]
[1724519502052,0.245502,64279.0,64278.0,0.00304]
[1724519502253,0.167751,64279.0,64278.0,0.00304]
[1724519502555,0.22984928,64279.0,64278.0,0.05250588]
[1724519502742,0.30760028,64279.0,64278.0,0.05250588]
[1724519503751,0.245502,64279.0,64278.0,0.05250588]
[1724519505240,0.155502,64279.0,64278.0,0.05250588]
[1724519505445,0.245502,64279.0,64278.0,0.05250588]
[1724519505648,0.245502,64279.0,64278.0,0.00604]
[1724519508560,0.30759467,64279.0,64278.0,0.00604]
[1724519508954,0.245502,64279.0,64278.0,0.00604]
[1724519509349,0.66839467,64279.0,64278.0,0.00604]
[1724519509748,0.606302,64279.0,64278.0,0.00604]
[1724519512355,0.606302,64279.0,64278.0,0.05250588]
[1724519513656,0.245502,64279.0,64278.0,0.05250588]
[1724519513953,0.606302,64279.0,64278.0,0.05250588]
[1724519514956,0.606302,64279.0,64278.0,0.00604]
[1724519515548,0.68406637,64279.0,64278.0,0.00604]
[1724519515752,0.606302,64279.0,64278.0,0.00604]
[1724519516453,0.68406637,64279.0,64278.0,0.00604]
[1724519517045,0.68406637,64279.0,64278.0,0.05250588]
[1724519518451,0.68406637,64279.0,64278.0,0.00604]
[1724519518655,0.63151091,64279.0,64278.0,0.00604]